bitfinex/quotes_ETHUSD_20241101
["timestamp","ask_amount","ask_price","bid_price","bid_amount"]
[1730457144364,3.96198,2524.0,2523.5,3.96262]
[1730457144653,4.74343,2523.7,2523.2,0.41344261]
[1730457144962,0.7809,2523.7,2523.3,3.9629]
[1730457145130,0.7809,2523.7,2523.3,4.00672434]
[1730457145331,0.7809,2523.7,2523.3,3.963]
[1730457145551,0.7809,2523.7,2523.2,4.37658261]
[1730457145737,3.96271,2523.6,2523.2,0.41344261]
[1730457145941,3.96292,2523.4,2522.8,4.71873]
[1730457146146,1.651431,2523.7,2523.0,0.41336567]
[1730457146463,3.96299,2523.4,2523.0,0.41336567]
[1730457146645,3.96288,2523.5,2523.0,0.41336567]
[1730457146959,4.7212,2524.1,2523.2,0.7764]
[1730457147165,5.49332,2524.1,2523.3,0.07924708]
[1730457147452,0.7593,2524.1,2523.3,0.07924708]
[1730457147657,4.72121,2524.1,2523.3,0.55]
[1730457147844,3.96128,2524.5,2523.4,0.7764]
[1730457148089,7.92258,2524.5,2523.5,0.55]
[1730457148245,3.96146,2524.4,2523.5,0.55]
[1730457148439,3.96163,2524.3,2523.5,0.55]
[1730457148687,0.868204,2524.4,2523.5,0.55]
[1730457148883,0.7593,2524.1,2523.5,0.55]
[1730457149044,0.7593,2524.1,2523.4,0.7764]
[1730457149246,0.7593,2524.1,2523.5,3.9626]
[1730457149493,0.7593,2524.1,2523.6,3.96244]
[1730457149667,0.7593,2524.1,2523.7,3.96234]
[1730457149870,4.72114,2524.1,2523.6,3.96254]
[1730457150396,0.7593,2524.1,2523.6,3.96254]
[1730457150863,4.72112,2524.1,2523.6,3.96254]
[1730457151188,0.7593,2524.1,2523.6,3.96254]
[1730457151346,0.7593,2524.1,2523.8,3.96227]
[1730457152089,0.7593,2524.1,2523.8,3.96219]
[1730457152300,0.8267,2524.3,2523.8,3.96219]
[1730457152457,4.78824,2524.3,2523.8,3.96219]
[1730457152657,3.96165,2524.2,2523.6,3.96248]
[1730457153085,1.701672,2524.3,2523.6,3.96248]
[1730457153285,5.663172,2524.3,2523.6,3.96248]
[1730457153486,3.96165,2524.2,2523.6,3.96248]
[1730457153684,3.96165,2524.2,2523.5,0.1]
[1730457153685,3.96199,2524.0,2523.5,0.1]
[1730457154202,3.96212,2523.9,2523.5,0.1]
[1730457154494,0.7686,2523.8,2523.5,0.1]
[1730457156897,0.7686,2523.8,2523.5,4.06272]
[1730457157371,3.96199,2524.0,2523.5,4.06272]
[1730457157570,3.96199,2524.0,2523.5,0.1]
[1730457157571,8.71569,2524.0,2523.5,0.1]
[1730457157766,4.75359,2524.0,2523.5,0.1]
[1730457157964,5.228949,2524.0,2523.5,0.1]
[1730457158700,3.96228,2523.8,2523.5,0.1]
[1730457159269,7.92465,2523.8,2523.5,0.1]
[1730457159464,3.96228,2523.8,2523.5,0.1]
[1730457159802,3.96259,2523.6,2523.5,0.1]
[1730457160012,4.755077,2523.6,2523.5,0.1]
[1730457160188,5.541277,2523.6,2523.5,0.1]
[1730457161174,4.7384,2523.4,2522.6,0.41351735]
[1730457161384,3.96381,2522.9,2522.4,4.76659]
[1730457161569,3.96381,2522.9,2522.4,0.8022]
[1730457161783,3.96368,2523.0,2522.4,4.76656]
[1730457162095,3.96353,2523.1,2522.5,3.96429]
[1730457162501,3.96365,2523.0,2522.4,4.76656]
[1730457162675,3.96377,2522.9,2522.4,4.76656]
[1730457162875,3.96365,2523.0,2522.4,4.76656]
[1730457163072,3.96365,2523.0,2522.5,3.96429]
[1730457163297,3.96365,2523.0,2522.4,8.73093]
[1730457163676,3.96364,2523.0,2522.4,4.76656]
[1730457164098,3.96374,2522.9,2522.4,4.76656]
[1730457164307,3.96364,2523.0,2522.4,8.73094]
[1730457164462,7.92729,2523.0,2522.4,4.76656]
[1730457164773,3.96362,2523.0,2522.4,4.76656]
[1730457164980,3.96362,2523.0,2522.5,3.9643]
[1730457165185,3.96372,2522.9,2522.4,4.76656]
[1730457165392,3.96362,2523.0,2522.5,3.96431]
[1730457165598,3.96362,2523.0,2522.4,4.76666]
[1730457165599,4.4073723,2523.0,2522.4,4.76666]
[1730457165771,3.96383,2522.9,2522.4,4.76666]
[1730457166112,3.96446,2522.5,2522.1,4.24216829]
[1730457166312,3.96456,2522.4,2522.1,0.41346829]
[1730457166669,3.96456,2522.4,2521.9,4.79396]
[1730457166670,4.757374,2522.4,2521.9,0.8287]
[1730457166897,4.757374,2522.4,2521.9,1.24192912]
[1730457166898,4.78897,2522.3,2521.9,1.24192912]
[1730457167126,3.96493,2522.2,2521.9,0.41322912]
[1730457167498,4.78897,2522.3,2521.9,0.41322912]
[1730457167705,3.96495,2522.1,2521.9,0.41322912]
[1730457168241,8.75368,2522.3,2521.9,0.41322912]
[1730457168447,3.96479,2522.2,2521.9,0.41322912]
[1730457168595,3.96494,2522.2,2521.9,0.41322912]
[1730457168939,0.875387,2522.2,2521.7,3.96557]
[1730457169125,4.840277,2522.2,2521.6,3.96568]
[1730457169442,3.96497,2522.1,2521.6,4.37896959]
[1730457169745,3.96497,2522.1,2521.6,0.41328959]
[1730457170050,3.96497,2522.1,2521.6,0.49259479]
[1730457170212,4.52547167,2522.1,2521.6,0.41328959]
[1730457170420,4.52547167,2522.1,2521.6,4.37893959]
[1730457170735,4.52547167,2522.1,2521.6,4.45824481]
[1730457171035,0.875387,2522.2,2521.7,3.96557]
[1730457171336,4.840177,2522.2,2521.7,3.96557]
[1730457173136,0.8242,2522.3,2521.7,3.96557]
[1730457173341,0.8242,2522.3,2522.0,3.96509]
[1730457173840,0.8242,2522.3,2522.0,3.96502]
[1730457174705,0.8242,2522.3,2521.8,3.96527]
[1730457176224,0.8242,2522.3,2521.9,3.96518]
[1730457178241,0.8242,2522.3,2521.9,3.96512]
[1730457180765,0.8242,2522.3,2521.8,3.96527]
[1730457180914,0.8242,2522.3,2521.9,3.96518]
[1730457182033,1.699515,2522.3,2521.7,0.41331973]
[1730457182239,3.96373,2522.9,2521.7,0.41331973]
[1730457182240,3.96527,2521.9,2521.7,0.41331973]
[1730457182402,7.93063,2521.9,2521.7,0.41331973]
[1730457182604,3.96527,2521.9,2521.7,0.41331973]
[1730457182828,4.839604,2521.9,2521.7,0.41331973]
[1730457183028,3.96542,2521.8,2521.7,0.41331973]
[1730457183253,3.96542,2521.8,2521.3,3.96617]
[1730457183629,3.96542,2521.8,2521.4,0.41328797]
[1730457183843,4.839604,2521.9,2521.5,3.96587]
[1730457183844,0.874334,2521.9,2521.5,3.96587]
[1730457184225,0.874334,2521.9,2521.4,4.37929797]
[1730457184226,3.96544,2521.8,2521.4,4.37929797]
[1730457184421,4.9272374,2521.8,2521.4,4.37929797]
[1730457184619,4.9272374,2521.8,2521.4,0.41328797]
[1730457184821,3.96557,2521.7,2521.2,3.96634]
[1730457185023,3.96576,2521.6,2521.2,3.96634]
[1730457185331,4.75536,2521.6,2521.2,4.3796218]
[1730457185527,4.75536,2521.6,2521.2,0.4132818]
[1730457185779,0.7896,2521.6,2521.2,0.4132818]
[1730457185962,3.96646,2521.2,2520.7,3.9671]
[1730457186275,0.7896,2521.6,2521.0,3.96667]
[1730457186276,3.9658,2521.6,2521.0,3.96667]
[1730457186477,3.96518,2522.0,2520.9,0.41292624]
[1730457186478,0.7673,2522.1,2521.5,0.794]
[1730457186678,0.7635,2522.4,2521.9,3.96518]
[1730457187023,3.96371,2522.9,2522.4,3.96439]
[1730457187308,1.2072523,2523.0,2522.6,3.96413]
[1730457187605,0.4437523,2523.0,2522.6,3.96406]
[1730457187779,0.4437523,2523.0,2522.5,3.96432]
[1730457187975,0.4437523,2523.0,2522.5,3.96422]
[1730457188182,4.4073023,2523.0,2522.4,4.732]
[1730457188367,4.4073023,2523.0,2522.5,3.96419]
[1730457188567,0.4437523,2523.0,2522.5,3.96419]
[1730457188871,4.4073123,2523.0,2522.5,3.96419]
[1730457189068,0.4437523,2523.0,2522.6,3.96402]
[1730457189271,4.73568,2523.2,2522.6,3.96402]
[1730457189801,3.96346,2523.1,2522.6,3.96402]
[1730457190781,4.73568,2523.2,2522.7,3.964]
[1730457191409,8.699,2523.2,2522.6,3.96402]
[1730457191618,8.699,2523.2,2522.4,4.73199]
[1730457191619,3.96355,2523.0,2522.4,4.73198]
[1730457191936,0.7724,2523.2,2522.2,0.7564]
[1730457192117,3.96417,2522.6,2522.0,3.96505]
[1730457192324,8.72503,2522.6,2522.0,3.96505]
[1730457192625,4.76077,2522.6,2522.0,4.833728]
[1730457192806,4.76077,2522.6,2522.1,3.96493]
[1730457192975,4.76077,2522.6,2522.0,8.798748]
[1730457193226,4.76077,2522.6,2522.1,3.96486]
[1730457194165,0.7966,2522.6,2522.2,3.96475]
[1730457194320,4.76838,2522.9,2522.3,4.361005]
[1730457194521,0.8046,2522.9,2522.4,3.96433]
[1730457194719,3.96329,2523.2,2522.6,3.96406]
[1730457195021,4.74887,2523.6,2522.9,0.8013]
[1730457195253,4.74887,2523.6,2523.0,3.96344]
[1730457195460,5.223757,2523.6,2523.0,4.04270658]
[1730457195931,3.96245,2523.7,2523.0,0.07926658]
[1730457196138,3.96237,2523.8,2522.9,3.8013]
[1730457196139,3.96227,2523.8,2522.9,3.8013]
[1730457196333,3.96254,2523.7,2523.0,0.07925691]
[1730457196545,3.96254,2523.7,2522.9,0.8013]
[1730457196546,3.96277,2523.5,2522.9,0.8013]
[1730457196746,3.96291,2523.4,2522.9,0.8013]
[1730457197081,3.96354,2523.0,2522.5,0.8124]
[1730457198160,3.96371,2522.9,2522.5,0.8124]
[1730457198361,3.96354,2523.0,2522.5,0.8124]
[1730457198966,7.92716,2523.0,2522.5,0.8124]
[1730457199128,3.96354,2523.0,2522.5,0.8124]
[1730457199336,3.96332,2523.2,2522.5,0.8124]
[1730457199579,3.96324,2523.2,2522.5,4.77671]
[1730457199792,3.96299,2523.4,2522.9,3.96359]
[1730457200066,3.96286,2523.5,2523.0,0.814]
[1730457200276,4.73184,2523.6,2523.0,4.7775]
[1730457200568,4.73184,2523.6,2523.0,0.814]
[1730457200776,4.73184,2523.6,2523.0,4.77749]
[1730457200981,8.69454,2523.6,2523.0,4.77749]
[1730457201138,3.96275,2523.5,2523.0,4.77749]
[1730457201641,3.96239,2523.8,2523.2,3.96313]
[1730457201940,3.96239,2523.8,2523.3,3.96302]
[1730457202475,4.73095,2523.9,2523.3,7.92597]
[1730457202680,4.73095,2523.9,2523.3,3.96295]
[1730457202874,0.7688,2523.9,2523.1,0.7811]
[1730457203175,3.96229,2523.8,2523.2,3.96306]
[1730457203384,3.96229,2523.8,2523.2,4.831738]
[1730457203883,3.96229,2523.8,2523.3,3.96305]
[1730457204034,3.96229,2523.8,2523.3,4.01843698]
[1730457204235,0.7688,2523.9,2523.4,3.96288]
[1730457204792,3.0,2524.6,2523.2,0.868678]
[1730457204793,0.772,2524.1,2523.6,3.96258]
[1730457204949,3.96196,2524.0,2523.5,3.96271]
[1730457205143,3.96196,2524.0,2523.5,0.764]
[1730457205335,3.96213,2523.9,2523.5,0.764]
[1730457205780,3.96196,2524.0,2523.5,0.764]
[1730457205981,3.96213,2523.9,2523.5,0.764]
[1730457206283,3.96196,2524.0,2523.5,0.764]
[1730457206575,3.96196,2524.0,2523.5,1.236692]
[1730457207341,3.96196,2524.0,2523.5,0.764]
[1730457207974,7.92407,2524.0,2523.5,0.764]
[1730457208181,3.96196,2524.0,2523.5,0.764]
[1730457209212,3.96212,2523.9,2523.5,0.764]
[1730457209414,7.92406,2524.0,2523.5,4.7267]
[1730457209571,3.96196,2524.0,2523.5,4.7267]
[1730457209917,7.92401,2524.0,2523.5,4.7267]
[1730457210268,3.96196,2524.0,2523.5,0.764]
[1730457210504,3.96221,2523.9,2523.5,0.764]
[1730457210711,3.96173,2524.2,2523.5,5.199431]
[1730457210944,3.96173,2524.2,2523.7,3.96238]
[1730457211223,3.96173,2524.2,2523.6,0.07924493]
[1730457211224,3.96104,2524.6,2524.1,3.96177]
[1730457211505,3.96104,2524.6,2524.1,8.793539]
[1730457211806,3.96104,2524.6,2524.1,3.96167]
[1730457212026,3.96157,2524.3,2523.9,0.7771]
[1730457212315,3.96219,2523.9,2523.6,0.8083]
[1730457212495,3.96229,2523.8,2523.4,3.8083]
[1730457212808,7.92465,2523.8,2523.4,3.8083]
[1730457213018,3.96229,2523.8,2523.4,3.8083]
[1730457213184,7.92465,2523.8,2523.4,3.8083]
[1730457213387,3.96229,2523.8,2523.4,3.8083]
[1730457214536,3.96212,2523.9,2523.4,7.77119]
[1730457214814,3.96212,2523.9,2523.5,0.07924504]
[1730457215025,3.96212,2523.9,2523.4,8.944604]
[1730457215383,1.274832,2524.2,2523.4,0.8083]
[1730457215620,3.9627,2523.6,2523.1,0.827]
[1730457215830,3.9627,2523.6,2522.4,4.37711017]
[1730457215831,0.7601,2522.5,2522.1,1.585265]
[1730457216013,0.7601,2522.5,2521.6,2.04472151]
[1730457216014,3.96447,2522.4,2521.6,3.96564]
[1730457216320,3.96463,2522.3,2521.7,0.396564]
[1730457216527,3.96509,2522.1,2521.3,4.72739]
[1730457216677,3.96509,2522.1,2521.3,4.72732]
[1730457216877,3.96509,2522.1,2521.3,0.7612]
[1730457217105,3.96556,2521.8,2521.3,0.7612]
[1730457217304,3.96554,2521.8,2521.3,0.7612]
[1730457217507,3.96558,2521.7,2521.3,0.7612]
[1730457218118,3.96554,2521.8,2521.3,0.7612]
[1730457218340,3.96518,2522.0,2521.3,0.7612]
[1730457218534,3.96485,2522.2,2521.4,0.07930918]
[1730457218686,3.96511,2522.0,2521.4,0.5599881]
[1730457218886,3.96485,2522.2,2521.4,4.5260281]
[1730457219096,3.96455,2522.4,2521.6,3.96572]
[1730457219295,3.96455,2522.4,2521.8,0.7512]
[1730457219513,3.96422,2522.6,2521.9,0.07929225]
[1730457219733,3.96422,2522.6,2521.9,4.52403048]
[1730457219932,3.96422,2522.6,2521.9,0.55888048]
[1730457221103,3.96394,2522.8,2522.0,0.55]
[1730457221308,3.96363,2523.0,2522.2,0.55]
[1730457221309,3.96373,2522.9,2522.2,0.55]
[1730457221512,3.96363,2523.0,2522.4,0.55]
[1730457221513,7.92729,2523.0,2522.4,0.55]
[1730457221801,3.96363,2523.0,2522.4,0.55]
[1730457222040,3.96363,2523.0,2522.2,0.55]
[1730457222203,3.9637,2522.9,2522.2,0.55]
[1730457222814,7.92791,2522.8,2522.2,0.55]
[1730457223012,3.96394,2522.8,2522.2,0.55]
[1730457223437,3.96402,2522.7,2522.2,3.55]
[1730457223630,3.96394,2522.8,2522.3,0.43075]
[1730457223806,3.96402,2522.7,2522.3,0.43075]
[1730457224007,3.96394,2522.8,2522.3,0.43075]
[1730457224423,3.96394,2522.8,2522.3,3.43075]
[1730457224638,3.96394,2522.8,2522.3,0.43075]
[1730457224941,3.96421,2522.6,2522.3,0.43075]
[1730457225148,3.96394,2522.8,2522.3,3.43075]
[1730457225357,3.96394,2522.8,2522.4,0.794552]
[1730457225649,3.96403,2522.7,2522.4,0.794552]
[1730457226211,1.18997,2523.5,2522.1,3.7575]
[1730457226547,3.96493,2522.2,2521.8,0.8201]
[1730457226719,3.96508,2522.1,2521.8,0.8201]
[1730457227441,3.96493,2522.2,2521.8,0.8201]
[1730457227639,7.92983,2522.2,2521.8,0.8201]
[1730457227965,3.9649,2522.2,2521.8,1.298683]
[1730457228527,3.96447,2522.4,2521.8,0.8201]
[1730457228757,3.96512,2522.0,2521.8,0.8201]
[1730457229754,3.96481,2522.2,2521.8,0.8201]
[1730457229930,4.77908026,2525.1,2522.0,3.0]
[1730457229931,0.7616,2523.1,2522.0,3.0]
[1730457230132,3.96426,2522.6,2522.1,0.07928334]
[1730457230333,3.96426,2522.6,2522.2,0.8201]
[1730457230656,3.96426,2522.6,2522.3,0.07928343]
[1730457231030,3.96435,2522.5,2522.2,0.8201]
[1730457231261,3.96449,2522.4,2522.2,0.8201]
[1730457231430,3.96463,2522.3,2521.6,0.7802]
[1730457231632,3.96441,2522.5,2521.9,3.0]
[1730457231931,3.96471,2522.3,2521.8,3.0]
[1730457232363,7.92946,2522.3,2521.8,3.0]
[1730457232558,3.96471,2522.3,2521.8,3.0]
[1730457232729,7.92948,2522.3,2521.8,3.0]
[1730457232933,3.96471,2522.3,2521.8,3.0]
[1730457233264,3.96471,2522.3,2521.8,3.829566]
[1730457234467,3.96471,2522.3,2521.8,7.794906]
[1730457234631,3.96471,2522.3,2521.8,3.829566]
[1730457234834,3.96495,2522.1,2521.7,0.55]
[1730457235034,3.96511,2522.0,2521.7,0.55]
[1730457235244,7.93079,2521.9,2521.6,0.7802]
[1730457235544,3.96543,2521.8,2521.3,1.16864473]
[1730457235961,3.96567,2521.7,2521.3,1.16864473]
[1730457236473,3.96577,2521.6,2521.3,1.16864473]
[1730457237145,3.96548,2521.8,2521.4,0.04731895]
[1730457237471,3.96558,2521.7,2521.4,0.07931295]
[1730457237680,3.96558,2521.7,2521.3,1.16864473]
[1730457237888,3.96548,2521.8,2521.4,0.07931138]
[1730457238181,3.96521,2522.0,2521.4,0.50410699]
[1730457238472,7.92979,2522.2,2521.7,0.7524]
[1730457238673,3.96487,2522.2,2521.8,0.07929943]
[1730457238848,3.96534,2521.9,2521.7,0.7524]
[1730457239178,3.96534,2521.9,2521.4,4.17719561]
[1730457239349,3.96542,2521.8,2521.4,4.17719561]
[1730457239549,3.96534,2521.9,2521.4,8.14322561]
[1730457239765,3.96534,2521.9,2521.5,0.07930638]
[1730457239974,3.96534,2521.9,2521.4,8.14322561]
[1730457240279,3.96534,2521.9,2521.4,4.17719561]
[1730457240751,3.96481,2522.2,2521.4,0.7524]
[1730457241088,3.96518,2522.0,2521.4,3.7524]
[1730457241376,3.96526,2521.9,2521.5,0.07930642]
[1730457241544,3.96526,2521.9,2521.4,3.7524]
[1730457241943,3.96553,2521.8,2521.4,3.7524]
[1730457242571,3.96526,2521.9,2521.4,3.7524]
[1730457242879,3.96526,2521.9,2521.5,0.07930646]
[1730457243248,3.96505,2522.1,2521.5,0.07930646]
[1730457243447,3.96484,2522.2,2521.7,4.73514]
[1730457243649,3.96484,2522.2,2521.8,0.07930021]
[1730457244246,3.96495,2522.1,2521.8,0.07930021]
[1730457244448,3.96518,2522.0,2521.7,0.7696]
[1730457244693,3.96526,2521.9,2521.7,0.7696]
[1730457245862,3.96526,2521.9,2521.4,0.7975]
[1730457246092,3.96549,2521.8,2521.4,0.7975]
[1730457246386,0.7698,2522.4,2521.4,4.7635]
[1730457246387,3.96527,2521.9,2521.4,4.7635]
[1730457246692,3.96548,2521.8,2521.4,0.7975]
[1730457246861,3.96548,2521.8,2521.4,4.76352]
[1730457247189,3.96506,2522.1,2521.6,3.9657]
[1730457247353,3.96506,2522.1,2521.7,0.07930196]
[1730457247752,3.96448,2522.4,2521.8,4.76283]
[1730457247991,4.77499,2522.7,2521.9,3.07929179]
[1730457248214,3.96152,2524.3,2522.4,3.9644]
[1730457248215,3.96371,2522.9,2522.4,3.9644]
[1730457248485,3.96406,2522.7,2522.2,6.96466]
[1730457249198,3.96406,2522.7,2522.2,3.0]
[1730457249199,3.96429,2522.6,2522.2,3.0]
[1730457249363,3.96406,2522.7,2522.1,0.7975]
[1730457249364,3.96475,2522.3,2522.1,0.7975]
[1730457249699,3.96475,2522.3,2521.7,7.93094]
[1730457249700,3.96492,2522.2,2521.9,0.7678]
[1730457250163,3.9651,2522.1,2521.7,0.7678]
[1730457250363,0.396492,2522.2,2521.7,0.7678]
[1730457250676,3.96542,2521.8,2521.4,0.8085]
[1730457251258,3.9652,2522.0,2521.3,4.37939391]
[1730457251259,3.96598,2521.5,2521.3,0.41327391]
[1730457251501,3.96598,2521.5,2521.2,0.8085]
[1730457252190,3.96574,2521.6,2521.2,0.8085]
[1730457252364,3.96574,2521.6,2521.3,0.07931589]
[1730457252695,3.96574,2521.6,2521.2,3.8085]
[1730457252875,3.96567,2521.7,2521.3,0.0793159]
[1730457253545,3.96567,2521.7,2521.3,4.0454959]
[1730457253835,0.8171,2522.0,2521.3,4.0454959]
[1730457253836,3.96505,2522.1,2521.3,5.14816159]
[1730457254122,3.35352754,2521.9,2521.4,3.96604]
[1730457254330,4.78174,2522.3,2521.6,3.829]
[1730457254331,3.96505,2522.1,2521.6,3.829]
[1730457254529,0.8171,2522.3,2521.6,0.829]
[1730457254530,7.9306,2521.9,2521.6,0.829]
[1730457254820,3.96526,2521.9,2521.6,0.829]
[1730457255889,3.96543,2521.8,2521.6,0.829]
[1730457256090,3.96559,2521.7,2521.4,3.8109]
[1730457256595,3.96559,2521.7,2521.4,0.8109]
[1730457256922,3.9648,2522.2,2521.7,3.96548]
[1730457257424,0.8171,2522.3,2521.5,0.55]
[1730457257585,3.96527,2521.9,2521.5,3.0]
[1730457258836,3.96527,2521.9,2521.5,6.96588]
[1730457259505,3.9651,2522.0,2521.5,6.96588]
[1730457260120,3.9653,2521.9,2521.5,3.0]
[1730457260330,7.93103,2521.8,2521.4,3.8109]
[1730457260491,7.931,2521.8,2521.4,3.8109]
[1730457260686,3.96549,2521.8,2521.4,3.8109]
[1730457261523,3.96599,2521.5,2521.2,0.7586]
[1730457261745,3.96605,2521.4,2521.2,0.7586]
[1730457261900,3.96605,2521.4,2521.0,4.72516]
[1730457262110,3.96599,2521.5,2521.0,4.72516]
[1730457262111,3.96599,2521.5,2521.0,5.13867309]
[1730457262414,3.96599,2521.5,2521.1,0.07931996]
[1730457263005,3.96599,2521.5,2521.1,3.07931996]
[1730457263391,3.96599,2521.5,2521.1,8.26427927]
[1730457263616,3.96599,2521.5,2521.1,8.18495931]
[1730457263821,3.96568,2521.7,2521.2,0.0793188]
[1730457264205,3.96573,2521.6,2521.2,0.0793188]
[1730457264748,3.96593,2521.5,2521.2,0.0793188]
[1730457265231,3.96573,2521.6,2521.2,0.0793188]
[1730457265908,3.96599,2521.5,2521.2,0.0793188]
[1730457266414,3.96573,2521.6,2521.2,0.0793188]
[1730457266595,3.96592,2521.5,2521.2,0.0793188]
[1730457266989,3.96557,2521.7,2521.2,0.0793188]
[1730457267193,3.96554,2521.8,2521.2,0.0793188]
[1730457267194,3.96573,2521.6,2521.2,0.0793188]
[1730457268213,7.93155,2521.6,2521.2,0.0793188]
[1730457268643,7.93204,2521.5,2521.2,0.0793188]
[1730457268971,3.96607,2521.4,2521.1,0.07931893]
[1730457269265,3.96636,2521.2,2521.1,0.55]
[1730457269837,3.96621,2521.3,2521.1,0.55]
[1730457270040,3.96621,2521.3,2520.9,0.55]
[1730457270384,3.96621,2521.3,2520.8,0.55]
[1730457271034,7.93256,2521.3,2520.8,0.55]
[1730457271470,3.96621,2521.3,2520.8,0.55]
[1730457272675,0.7822,2521.4,2520.8,8.745156]
[1730457272859,3.9657,2521.7,2521.2,0.55]
[1730457273175,3.96546,2521.8,2521.2,4.51635]
[1730457273392,0.7611,2521.9,2521.5,0.55]
[1730457273585,4.7262,2522.1,2521.5,0.55]
[1730457273753,0.7611,2522.1,2521.7,0.55]
[1730457274085,3.96523,2522.0,2521.7,0.55]
[1730457274483,3.96473,2522.3,2521.7,0.55]
[1730457274780,3.96479,2522.2,2521.7,0.55]
[1730457274987,3.96517,2522.0,2521.7,0.55]
[1730457275877,1.157573,2522.3,2521.7,0.55]
[1730457276101,3.96405,2522.7,2521.9,3.55]
[1730457276306,3.96405,2522.7,2521.9,7.51517]
[1730457276307,3.96432,2522.5,2521.9,7.51517]
[1730457276779,3.96436,2522.5,2521.9,7.51517]
[1730457277117,3.96425,2522.6,2522.1,0.55]
[1730457277406,7.9285,2522.6,2522.1,0.55]
[1730457277618,3.96425,2522.6,2522.1,0.55]
[1730457277817,7.92854,2522.6,2522.1,0.55]
[1730457277975,3.96425,2522.6,2522.1,0.55]
[1730457278286,3.96424,2522.6,2522.1,0.55]
[1730457278608,3.96424,2522.6,2522.0,3.96504]
[1730457278609,3.96436,2522.5,2522.0,0.55]
[1730457278811,3.96448,2522.4,2522.0,1.776382]
[1730457278995,3.96424,2522.6,2522.0,1.776382]
[1730457278996,7.92855,2522.6,2522.0,1.776382]
[1730457279306,3.96424,2522.6,2522.0,1.776382]
[1730457279511,3.96435,2522.5,2522.0,1.776382]
[1730457279911,3.96448,2522.4,2522.0,1.776382]
[1730457280119,3.96432,2522.5,2522.0,0.55]
[1730457280289,7.92877,2522.5,2522.0,0.55]
[1730457280479,3.96384,2522.8,2522.0,0.55]
[1730457280679,3.96446,2522.5,2522.0,0.55]
[1730457280902,7.92892,2522.5,2522.0,0.55]
[1730457281388,3.96455,2522.4,2522.0,0.55]
[1730457282390,3.96416,2522.6,2522.0,0.55]
[1730457282591,3.96439,2522.5,2522.0,0.55]
[1730457283186,3.96448,2522.4,2522.0,0.55]
[1730457283612,3.96483,2522.2,2521.8,0.7832]
[1730457284989,3.96483,2522.2,2521.9,0.55]
[1730457285516,4.75569,2522.4,2521.9,0.55]
[1730457285517,4.75569,2522.4,2521.9,9.22494412]
[1730457285727,3.96426,2522.6,2522.0,3.96503]
[1730457286012,3.96426,2522.6,2522.1,0.55]
[1730457286200,3.96426,2522.6,2522.1,1.92399741]
[1730457286604,3.96426,2522.6,2522.1,5.68471304]
[1730457286820,3.96426,2522.6,2522.1,9.57036134]
[1730457286982,3.96426,2522.6,2522.1,5.60542134]
[1730457287379,0.7911,2522.7,2522.1,5.60542134]
[1730457287708,0.7911,2522.7,2521.9,3.96525]
[1730457287709,3.96466,2522.3,2521.9,3.55]
[1730457287892,3.96449,2522.4,2521.9,3.55]
[1730457288099,3.96449,2522.4,2521.9,7.51524]
[1730457288299,3.96418,2522.6,2522.1,4.23142393]
[1730457288499,3.96418,2522.6,2522.1,5.04982393]
[1730457288822,7.92845,2522.6,2522.1,5.04982393]
[1730457289325,3.96439,2522.5,2522.1,5.04982393]
[1730457289919,7.92884,2522.5,2522.1,5.04982393]
[1730457290121,3.96439,2522.5,2522.1,5.04982393]
[1730457290486,7.92884,2522.5,2522.1,5.04982393]
[1730457290683,7.9288,2522.5,2522.1,5.04982393]
[1730457291101,3.96439,2522.5,2522.1,5.04982393]
[1730457292363,3.96439,2522.5,2522.1,6.25131232]
[1730457293031,3.96409,2522.7,2522.1,6.25131232]
[1730457293336,3.96377,2522.9,2522.5,0.55]
[1730457293655,3.96377,2522.9,2522.7,0.55]
[1730457293860,3.96347,2523.1,2522.7,0.55]
[1730457294757,3.96371,2522.9,2522.7,0.55]
[1730457295121,3.96389,2522.8,2522.5,0.55]
[1730457295329,3.96379,2522.9,2522.5,0.55]
[1730457295721,3.96401,2522.7,2522.5,0.55]
[1730457296122,3.96386,2522.8,2522.5,0.55]
[1730457296956,3.96403,2522.7,2522.5,0.55]
[1730457297759,3.96403,2522.7,2522.2,4.50502393]
[1730457297955,3.96429,2522.6,2522.3,0.55]
[1730457298122,3.96434,2522.5,2522.3,0.55]
[1730457299203,3.96403,2522.7,2522.3,0.55]
[1730457299204,3.96425,2522.6,2522.3,0.55]
[1730457300213,7.92814,2522.7,2522.3,0.55]
[1730457300376,3.96403,2522.7,2522.4,3.68142393]
[1730457300707,7.92819,2522.7,2522.5,0.55]
[1730457300899,3.96432,2522.5,2522.3,0.55]
[1730457301805,7.92842,2522.6,2522.3,0.55]
[1730457301997,3.96417,2522.6,2522.3,0.55]
[1730457302205,3.96417,2522.6,2522.0,0.8116]
[1730457302206,3.96463,2522.3,2522.0,0.8116]
[1730457303177,3.96451,2522.4,2522.0,0.8116]
[1730457303604,3.96451,2522.4,2522.1,0.55]
[1730457303789,3.96468,2522.3,2522.1,0.55]
[1730457303997,3.96479,2522.2,2522.1,0.55]
[1730457304195,3.96479,2522.2,2521.7,3.0]
[1730457304196,3.96507,2522.1,2521.7,0.7547]
[1730457304520,3.96507,2522.1,2521.5,4.49559567]
[1730457304521,3.96537,2521.9,2521.5,4.49559567]
[1730457304681,7.93076,2521.9,2521.5,5.34176824]